fUSD/lending_fUSD_20250110
["ID","MTS","AMOUNT","RATE_DAILY","PERIOD"]
[348370357,1736475041169,-769.71,0.00010108,2]
[348370358,1736475041178,-671.25,0.00010108,2]
[348370359,1736475041189,-598.56,0.00010108,2]
[348370360,1736475041198,-814.0,0.00010108,2]
[348370361,1736475041207,-680.67,0.00010108,2]
[348370362,1736475041217,-500.0,0.00010108,2]
[348370363,1736475041227,-556.78,0.00010108,2]
[348370364,1736475041238,-500.0,0.00010108,2]
[348370365,1736475041248,-921.78,0.00010108,2]
[348370366,1736475041257,-629.46,0.00010108,2]
[348370367,1736475041268,-827.73,0.00010108,2]
[348370368,1736475041280,-500.0,0.00010108,2]
[348370369,1736475041290,-1040.12,0.00010108,2]
[348370370,1736475041299,-500.0,0.00010108,2]
[348370371,1736475041308,-598.52,0.00010108,2]
[348370372,1736475041317,-500.0,0.00010108,2]
[348370373,1736475041326,-500.0,0.00010108,2]
[348370374,1736475041335,-1408.47,0.00010108,2]
[348370375,1736475041344,-500.0,0.00010108,2]
[348370376,1736475041354,-1000.36,0.00010108,2]
[348370377,1736475041363,-2397.79,0.00010108,2]
[348370378,1736475041372,-1158.99,0.00010108,2]
[348370379,1736475041381,-1158.99,0.00010108,2]
[348370380,1736475041391,-1087.22,0.00010108,2]
[348370381,1736475041400,-1623.7,0.00010108,2]
[348370382,1736475041410,-674.88,0.00010108,2]
[348370383,1736475041419,-175.29,0.00010137,2]
[348370384,1736475041428,-803.54,0.00010137,2]
[348370385,1736475041439,-150.0,0.00010148,2]
[348370386,1736475041448,-8146.95175509,0.0001017,2]
[348370387,1736475041458,-2415.3741864,0.00010172,2]
[348370388,1736475041467,-700.0,0.00010186,2]
[348370389,1736475041477,-500.0,0.00010186,2]
[348370390,1736475041486,-500.0,0.00010186,2]
[348370391,1736475041495,-150.0,0.00010192,2]
[348370392,1736475041505,-2000.0,0.00010201,2]
[348370393,1736475041518,-200.0,0.00010201,2]
[348370394,1736475041528,-223.1069059,0.0001021,2]
[348370395,1736475041537,-10111.51854982,0.00010248,4]
[348370396,1736475041546,-1000.0,0.0001026,2]
[348370397,1736475041557,-500.0,0.0001027,2]
[348370398,1736475041566,-1822.99,0.0001027,2]
[348370399,1736475041575,-3596.11,0.0001027,2]
[348370400,1736475041585,-1685.56,0.0001027,2]
[348370401,1736475041595,-500.0,0.0001027,2]
[348370402,1736475041604,-1058.84,0.0001027,2]
[348370403,1736475041614,-555.05,0.0001027,2]
[348370404,1736475041623,-500.0,0.0001027,2]
[348370405,1736475041632,-510.73718507,0.0001027,2]
[348370406,1736475041642,-1009.65,0.0001027,2]
[348370407,1736475041652,-567.68,0.0001027,2]
[348370408,1736475041661,-500.0,0.0001027,2]
[348370409,1736475041671,-1665.6,0.0001027,2]
[348370410,1736475041680,-888.01,0.0001027,2]
[348370411,1736475041690,-1101.94,0.0001027,2]
[348370412,1736475041700,-839.87,0.0001027,2]
[348370413,1736475041710,-591.7,0.0001027,2]
[348370414,1736475041719,-500.0,0.00010271,2]
[348370415,1736475041729,-500.0,0.00010271,2]
[348370416,1736475041738,-500.0,0.00010271,2]
[348370417,1736475041747,-385.94998335,0.00010271,2]
[348370418,1736475041756,-509.36315262,0.00010271,2]
[348370419,1736475041766,-2879.59,0.00010271,2]
[348370420,1736475041775,-1278.11,0.00010271,2]
[348370421,1736475041785,-513.17635972,0.00010271,2]
[348370422,1736475041794,-2220.07,0.00010271,2]
[348370423,1736475041803,-500.0,0.00010271,2]
[348370424,1736475041813,-532.49177872,0.00010271,2]
[348370425,1736475041822,-3365.35744414,0.00010271,2]
[348370426,1736475041835,-4212.59255586,0.00010271,2]
[348370427,1736475041844,-942.73,0.00010271,2]
[348370428,1736475041853,-500.0,0.00010271,2]
[348370429,1736475041862,-506.42726625,0.00010271,2]
[348370430,1736475041871,-978.61,0.00010271,2]
[348370431,1736475041880,-506.59057905,0.00010271,2]
[348370432,1736475041889,-1181.29,0.00010271,2]
[348370433,1736475041899,-506.21345616,0.00010271,2]
[348370434,1736475041908,-1048.0,0.00010271,2]
[348370435,1736475041917,-1163.24,0.00010271,2]
[348370436,1736475041926,-1921.62,0.00010271,2]
[348370437,1736475041935,-500.0,0.00010271,2]
[348370438,1736475041945,-500.0,0.00010271,2]
[348370439,1736475041955,-505.77458135,0.00010271,2]
[348370440,1736475041964,-1575.84,0.00010271,2]
[348370441,1736475041973,-324.28380569,0.00010271,2]
[348370442,1736475041984,-3165.41619431,0.00010271,2]
[348370443,1736475041993,-1122.78,0.00010271,2]
[348370444,1736475042003,-867.01,0.00010271,2]
[348370445,1736475042012,-1797.72,0.00010271,2]
[348370446,1736475042021,-507.58185994,0.00010271,2]
[348370447,1736475042031,-509.0093534,0.00010271,2]
[348370448,1736475042040,-1602.74,0.00010271,2]
[348370449,1736475042049,-1205.87,0.00010271,2]
[348370450,1736475042059,-507.61729686,0.00010271,2]
[348370451,1736475042068,-500.0,0.00010271,2]
[348370452,1736475042077,-1466.05,0.00010271,2]
[348370453,1736475042086,-1235.68,0.00010271,2]
[348370454,1736475042095,-500.0,0.00010271,2]
[348370455,1736475042104,-500.0,0.00010271,2]
[348370456,1736475042113,-1960.83,0.00010271,2]
[348370457,1736475042123,-3802.27,0.00010271,2]
[348370458,1736475042132,-845.21,0.00010272,2]
[348370459,1736475042142,-1153.58,0.00010272,2]
[348370460,1736475042152,-972.31,0.00010272,2]
[348370461,1736475042162,-1142.22,0.00010272,2]
[348370462,1736475042171,-1465.92,0.00010272,2]
[348370463,1736475042180,-1624.8,0.00010272,2]
[348370464,1736475042190,-2573.55,0.00010272,2]
[348370465,1736475042199,-6802.79,0.00010272,2]
[348370466,1736475042208,-1243.43,0.00010272,2]
[348370467,1736475042217,-980.32,0.00010272,2]
[348370468,1736475042227,-1026.91,0.00010272,2]
[348370469,1736475042235,-2810.3,0.00010272,2]
[348370470,1736475042244,-500.0,0.00010272,2]
[348370471,1736475042253,-990.97,0.00010272,2]
[348370472,1736475042263,-1420.42,0.00010272,2]
[348370473,1736475042272,-1011.96,0.00010272,2]
[348370474,1736475042282,-1623.27,0.00010272,2]
[348370475,1736475042292,-1128.26,0.00010272,2]
[348370476,1736475042302,-1162.98,0.00010272,2]
[348370477,1736475042311,-500.0,0.00010272,2]
[348370478,1736475042321,-3141.48,0.00010272,2]
[348370479,1736475042330,-1914.36,0.00010272,2]
[348370480,1736475042340,-500.0,0.00010273,2]
[348370481,1736475042349,-500.0,0.00010273,2]
[348370482,1736475042359,-500.0,0.00010273,2]
[348370483,1736475042368,-500.0,0.00010273,2]
[348370484,1736475042378,-667.9,0.00010273,2]
[348370485,1736475042388,-500.0,0.00010273,2]
[348370486,1736475042398,-500.0,0.00010273,2]
[348370487,1736475042407,-500.0,0.00010273,2]
[348370488,1736475042417,-737.54,0.00010273,2]
[348370489,1736475042426,-500.0,0.00010273,2]
[348370490,1736475042436,-500.0,0.00010273,2]
[348370491,1736475042446,-847.96,0.00010273,2]
[348370492,1736475042456,-500.0,0.00010273,2]
[348370493,1736475042466,-751.21,0.00010273,2]
[348370494,1736475042475,-808.04,0.00010273,2]
[348370495,1736475042485,-733.89,0.00010273,2]
[348370496,1736475042494,-534.6,0.00010273,2]
[348370497,1736475042503,-500.0,0.00010273,2]
[348370498,1736475042517,-500.0,0.00010273,2]
[348370499,1736475042526,-500.0,0.00010273,2]
[348370500,1736475042536,-500.0,0.00010273,2]
[348370501,1736475042545,-504.64,0.00010273,2]
[348370502,1736475042555,-500.0,0.00010273,2]
[348370503,1736475042565,-635.53,0.00010273,2]
[348370504,1736475042575,-500.35394367,0.00010273,2]
[348370505,1736475042586,-500.0,0.00010273,2]
[348370506,1736475042595,-500.0,0.00010273,2]
[348370507,1736475042605,-744.11,0.00010273,2]
[348370508,1736475042614,-616.41,0.00010273,2]
[348370509,1736475042624,-765.84,0.00010273,2]
[348370510,1736475042634,-500.0,0.00010273,2]
[348370511,1736475042644,-500.0,0.00010273,2]
[348370512,1736475042654,-500.0,0.00010273,2]
[348370513,1736475042663,-609.66,0.00010273,2]
[348370514,1736475042674,-500.0,0.00010273,2]
[348370515,1736475042684,-500.0,0.00010273,2]
[348370516,1736475042694,-508.54313898,0.00010273,2]
[348370517,1736475042703,-505.5340845,0.00010273,2]
[348370518,1736475042713,-500.0,0.00010273,2]
[348370519,1736475042723,-736.03,0.00010273,2]
[348370520,1736475042732,-505.80929571,0.00010273,2]
[348370521,1736475042742,-512.00535454,0.00010273,2]
[348370522,1736475042752,-500.0,0.00010273,2]
[348370523,1736475042761,-508.14541794,0.00010273,2]
[348370524,1736475042771,-359.3584388,0.00010273,2]
[348370525,1736475042781,-181.26630969,0.00010273,2]
[348370526,1736475042791,-500.0,0.00010273,2]
[348370527,1736475042801,-567.35,0.00010273,2]
[348370528,1736475042811,-489.76174935,0.00010273,2]
[348370529,1736475042820,-595.85,0.00010273,2]
[348370530,1736475042830,-500.0,0.00010273,2]
[348370532,1736475042839,-745.99,0.00010273,2]
[348370533,1736475042848,-500.0,0.00010273,2]
[348370535,1736475042858,-500.0,0.00010273,2]
[348370536,1736475042869,-500.0,0.00010273,2]
[348370537,1736475042878,-500.0,0.00010273,2]
[348370538,1736475042888,-706.1,0.00010273,2]
[348370539,1736475042898,-783.78,0.00010273,2]
[348370540,1736475042907,-510.3475688,0.00010273,2]
[348370541,1736475042917,-518.71,0.00010273,2]
[348370542,1736475042926,-464.07000156,0.00010273,2]
[348370543,1736475042936,-637.16,0.00010273,2]
[348370544,1736475042946,-778.24,0.00010273,2]
[348370545,1736475042955,-509.16131839,0.00010273,2]
[348370546,1736475042965,-500.0,0.00010273,2]
[348370547,1736475042974,-672.33,0.00010273,2]
[348370548,1736475042983,-500.0,0.00010273,2]
[348370549,1736475042993,-795.26,0.00010273,2]
[348370550,1736475043002,-764.59,0.00010273,2]
[348370551,1736475043012,-500.0,0.00010273,2]
[348370552,1736475043021,-557.09,0.00010273,2]
[348370553,1736475043031,-208.91063521,0.00010273,2]
[348370555,1736475043041,-513.84404892,0.00010273,2]
[348370556,1736475043051,-500.0,0.00010273,2]
[348370558,1736475043060,-557.85,0.00010273,2]
[348370560,1736475043071,-500.0,0.00010273,2]
[348370561,1736475043082,-500.0,0.00010273,2]
[348370562,1736475043092,-736.41,0.00010273,2]
[348370563,1736475043103,-631.63449693,0.00010273,2]
[348370564,1736475043113,-578.84,0.00010273,2]
[348370565,1736475043124,-504.24426877,0.00010273,2]
[348370566,1736475043135,-518.7491291,0.00010273,2]
[348370567,1736475043145,-646.05,0.00010273,2]
[348370568,1736475043154,-715.92,0.00010273,2]
[348370569,1736475043163,-575.94,0.00010273,2]
[348370570,1736475043173,-510.70732432,0.00010273,2]
[348370571,1736475043183,-668.95,0.00010273,2]
[348370572,1736475043194,-500.0,0.00010273,2]
[348370573,1736475043203,-512.1644145,0.00010273,2]
[348370574,1736475043213,-579.6,0.00010273,2]
[348370575,1736475043222,-508.98442528,0.00010273,2]
[348370576,1736475043232,-500.0,0.00010273,2]
[348370577,1736475043243,-504.58103619,0.00010273,2]
[348370579,1736475043253,-500.0,0.00010273,2]
[348370580,1736475043262,-649.39,0.00010273,2]
[348370582,1736475043272,-500.0,0.00010273,2]
[348370584,1736475043282,-656.67,0.00010273,2]
[348370586,1736475043292,-508.70006263,0.00010273,2]
[348370588,1736475043302,-506.92220739,0.00010273,2]
[348370590,1736475043311,-566.75,0.00010273,2]
[348370591,1736475043321,-2871.1,0.00010273,2]
[348370592,1736475043331,-505.14417339,0.00010273,2]
[348370594,1736475043340,-500.0,0.00010273,2]
[348370595,1736475043350,-512.39639693,0.00010273,2]
[348370596,1736475043360,-614.33,0.00010273,2]
[348370597,1736475043370,-500.0,0.00010273,2]
[348370598,1736475043379,-672.97,0.00010273,2]
[348370599,1736475043389,-643.1,0.00010273,2]
[348370600,1736475043399,-2260.12,0.00010273,2]
[348370601,1736475043409,-513.41418749,0.00010273,2]
[348370602,1736475043420,-821.45,0.00010273,2]
[348370603,1736475043430,-871.79,0.00010273,2]
[348370604,1736475043441,-540.2765535,0.00010273,2]
[348370605,1736475043451,-500.0,0.00010273,2]
[348370606,1736475043460,-859.63,0.00010273,2]
[348370607,1736475043471,-505.96,0.00010273,2]
[348370608,1736475043480,-500.0,0.00010273,2]
[348370609,1736475043491,-627.75,0.00010273,2]
[348370610,1736475043501,-742.04,0.00010273,2]
[348370611,1736475043514,-879.43,0.00010273,2]
[348370612,1736475043524,-885.32,0.00010273,2]
[348370613,1736475043534,-678.87,0.00010273,2]
[348370614,1736475043544,-499.01427277,0.00010273,2]
[348370615,1736475043555,-509.24629197,0.00010273,2]
[348370616,1736475043565,-500.0,0.00010273,2]
[348370617,1736475043574,-500.0,0.00010273,2]
[348370618,1736475043584,-699.2,0.00010273,2]
[348370619,1736475043595,-500.0,0.00010273,2]
[348370620,1736475043605,-501.83,0.00010273,2]
[348370621,1736475043615,-748.42,0.00010273,2]
[348370622,1736475043625,-508.71,0.00010273,2]
[348370623,1736475043635,-933.14,0.00010273,2]
[348370624,1736475043646,-500.0,0.00010273,2]
[348370625,1736475043658,-500.0,0.00010273,2]
[348370626,1736475043668,-500.0,0.00010273,2]
[348370627,1736475043678,-674.21,0.00010273,2]
[348370628,1736475043688,-500.0,0.00010273,2]
[348370629,1736475043699,-1028.82,0.00010273,2]
[348370631,1736475043709,-500.0,0.00010273,2]
[348370632,1736475043718,-500.0,0.00010273,2]
[348370633,1736475043728,-509.77953626,0.00010273,2]
[348370634,1736475043738,-500.0,0.00010273,2]
[348370635,1736475043748,-643.85,0.00010273,2]
[348370636,1736475043758,-641.27,0.00010273,2]
[348370637,1736475043768,-575.67,0.00010273,2]
[348370638,1736475043780,-718.12,0.00010273,2]
[348370639,1736475043791,-508.88261405,0.00010273,2]
[348370640,1736475043801,-500.0,0.00010273,2]
[348370641,1736475043812,-159.55,0.00010275,2]
[348370642,1736475043822,-2415.3741864,0.00010281,2]
[348370643,1736475043831,-2000.0,0.00010303,2]
[348370644,1736475043841,-200.0,0.00010303,2]
[348370645,1736475043851,-8146.95175508,0.00010309,2]
[348370646,1736475043862,-223.1069059,0.00010314,2]
[348370647,1736475043872,-1767.18,0.00010379,2]
[348370648,1736475043882,-346.996598,0.00010379,2]
[348370649,1736475043892,-1116.01,0.00010379,2]
[348370650,1736475043902,-353.089075,0.00010379,2]
[348370651,1736475043911,-3668.64,0.00010379,2]
[348370652,1736475043921,-1183.21,0.00010379,2]
[348370653,1736475043931,-744.46,0.00010379,2]
[348370654,1736475043942,-622.32,0.00010379,2]
[348370655,1736475043951,-500.0,0.00010379,2]
[348370656,1736475043962,-3104.7,0.00010379,2]
[348370657,1736475043972,-500.0,0.00010379,2]
[348370658,1736475043982,-1125.29,0.00010379,2]
[348370659,1736475043992,-952.41,0.00010379,2]
[348370660,1736475044002,-612.11,0.00010379,2]
[348370661,1736475044011,-1424.08,0.00010379,2]
[348370662,1736475044022,-1236.93,0.00010379,2]
[348370663,1736475044032,-1458.03,0.00010379,2]
[348370664,1736475044041,-603.67,0.0001038,2]
[348370665,1736475044050,-500.0,0.0001038,2]
[348370666,1736475044060,-599.04,0.0001038,2]
[348370667,1736475044069,-500.0,0.0001038,2]
[348370668,1736475044079,-500.0,0.0001038,2]
[348370669,1736475044090,-500.0,0.0001038,2]
[348370670,1736475044100,-525.21,0.0001038,2]
[348370671,1736475044110,-500.0,0.0001038,2]
[348370672,1736475044120,-500.0,0.0001038,2]
[348370673,1736475044130,-522.71,0.0001038,2]
[348370674,1736475044140,-500.0,0.0001038,2]
[348370675,1736475044150,-662.64,0.0001038,2]
[348370676,1736475044159,-500.0,0.0001038,2]
[348370677,1736475044169,-798.46,0.0001038,2]
[348370678,1736475044179,-730.07,0.0001038,2]
[348370679,1736475044189,-500.0,0.0001038,2]
[348370680,1736475044199,-500.0,0.0001038,2]
[348370681,1736475044208,-500.0,0.0001038,2]
[348370682,1736475044219,-687.19,0.0001038,2]
[348370683,1736475044230,-555.81,0.0001038,2]
[348370684,1736475044240,-500.0,0.0001038,2]
[348370685,1736475044250,-680.04,0.0001038,2]
[348370686,1736475044260,-710.55,0.0001038,2]
[348370687,1736475044270,-500.0,0.0001038,2]
[348370688,1736475044280,-523.72,0.0001038,2]
[348370689,1736475044291,-500.0,0.0001038,2]
[348370690,1736475044301,-500.0,0.0001038,2]
[348370691,1736475044311,-290.07030666,0.0001038,2]
[348370692,1736475044326,-209.92969334,0.0001038,2]
[348370693,1736475044336,-500.0,0.0001038,2]
[348370694,1736475044346,-615.32,0.0001038,2]
[348370695,1736475044355,-500.0,0.0001038,2]
[348370696,1736475044366,-500.0,0.0001038,2]
[348370697,1736475044376,-641.91,0.0001038,2]
[348370698,1736475044387,-500.0,0.0001038,2]
[348370699,1736475044398,-856.92,0.0001038,2]
[348370700,1736475044408,-564.61,0.0001038,2]
[348370701,1736475044419,-500.0,0.0001038,2]
[348370702,1736475044429,-546.19,0.0001038,2]
[348370703,1736475044438,-531.58,0.0001038,2]
[348370704,1736475044449,-902.24,0.0001038,2]
[348370705,1736475044459,-846.3,0.0001038,2]
[348370706,1736475044469,-726.36,0.0001038,2]
[348370707,1736475044480,-895.08034846,0.0001038,2]
[348370708,1736475044494,-269.51965154,0.0001038,2]
[348370709,1736475044504,-500.0,0.0001038,2]
[348370710,1736475044517,-521.24,0.0001038,2]
[348370711,1736475044527,-500.0,0.0001038,2]
[348370712,1736475044537,-714.74,0.0001038,2]
[348370713,1736475044546,-494.50034846,0.0001038,2]
[348370714,1736475044559,-5.49965154,0.0001038,2]
[348370715,1736475044569,-500.0,0.0001038,2]
[348370716,1736475044579,-678.49,0.0001038,2]
[348370717,1736475044591,-518.66,0.0001038,2]
[348370718,1736475044602,-536.01,0.0001038,2]
[348370719,1736475044613,-500.0,0.0001038,2]
[348370720,1736475044623,-500.0,0.0001038,2]
[348370721,1736475044633,-869.05,0.0001038,2]
[348370722,1736475044643,-588.86,0.0001038,2]
[348370723,1736475044654,-1150.96,0.0001038,2]
[348370724,1736475044664,-677.48,0.0001038,2]
[348370725,1736475044674,-710.72,0.0001038,2]
[348370726,1736475044685,-747.86,0.0001038,2]
[348370727,1736475044695,-500.0,0.0001038,2]
[348370728,1736475044705,-3512.11,0.0001038,2]
[348370729,1736475044716,-500.0,0.00010381,2]
[348370730,1736475044726,-500.0,0.00010381,2]
[348370731,1736475044736,-500.0,0.00010381,2]
[348370732,1736475044746,-635.24,0.00010381,2]
[348370733,1736475044755,-500.0,0.00010381,2]
[348370734,1736475044765,-591.35,0.00010381,2]
[348370735,1736475044775,-500.0,0.00010381,2]
[348370736,1736475044785,-500.0,0.00010381,2]
[348370737,1736475044795,-500.0,0.00010381,2]
[348370738,1736475044805,-500.0,0.00010381,2]
[348370739,1736475044815,-705.88,0.00010381,2]
[348370740,1736475044825,-500.0,0.00010381,2]
[348370741,1736475044835,-500.0,0.00010381,2]
[348370742,1736475044844,-500.0,0.00010381,2]
[348370743,1736475044854,-500.0,0.00010381,2]
[348370744,1736475044864,-636.74,0.00010381,2]
[348370745,1736475044874,-500.0,0.00010381,2]
[348370746,1736475044884,-500.0,0.00010381,2]
[348370747,1736475044895,-500.0,0.00010381,2]
[348370748,1736475044905,-500.0,0.00010381,2]
[348370749,1736475044915,-500.0,0.00010381,2]
[348370750,1736475044925,-269.3303955,0.00010381,2]
[348370751,1736475044938,-230.6696045,0.00010381,2]
[348370752,1736475044948,-69.3303955,0.00010381,2]
[348370753,1736475044960,-430.6696045,0.00010381,2]
[348370754,1736475044971,-335.72450313,0.00010381,2]
[348370755,1736475045016,-500.0,0.00010273,2]
[348370756,1736475045026,-164.27549687,0.00010381,2]
[348370757,1736475045037,-496.5922252,0.00010381,2]
[348370758,1736475045047,-500.0,0.00010381,2]
[348370759,1736475045056,-500.0,0.00010381,2]
[348370760,1736475045066,-505.93550756,0.00010381,2]
[348370761,1736475045076,-503.41,0.00010381,2]
[348370762,1736475045086,-996.76,0.00010381,2]
[348370763,1736475045095,-806.28979237,0.00010381,2]
[348370764,1736475045108,-210.11020763,0.00010381,2]
[348370765,1736475045118,-649.78841679,0.00010381,2]
[348370766,1736475045130,-730.78158321,0.00010381,2]
[348370767,1736475045140,-1178.1,0.00010381,2]
[348370768,1736475045150,-1407.19,0.00010381,2]
[348370769,1736475045161,-2305.58,0.00010381,2]
[348370770,1736475045170,-893.73393779,0.00010381,2]
[348370771,1736475045219,-1657.80740196,0.00010381,2]
[348370772,1736475046331,-301.91055826,0.00010108,2]
[348370773,1736475046344,-1272.36944174,0.00010108,2]
[348370774,1736475046355,-1735.17866025,0.00010381,2]
[348370775,1736475046366,-1986.89878548,0.00010381,2]
[348370776,1736475046418,-14.95121452,0.00010381,2]
[348370777,1736475046428,-1437.88,0.00010381,2]
[348370778,1736475046437,-3252.62,0.00010381,2]
[348370779,1736475046447,-1797.36,0.00010381,2]
[348370780,1736475046456,-1404.07,0.00010381,2]
[348370781,1736475046466,-368.74650539,0.00010381,2]
[348370782,1736475046475,-2557.41,0.00010381,2]
[348370783,1736475046485,-671.25,0.00010382,2]
[348370784,1736475046494,-598.56,0.00010382,2]
[348370785,1736475046503,-814.0,0.00010382,2]
[348370786,1736475046515,-680.67,0.00010382,2]
[348370787,1736475046524,-510.90480938,0.00010382,2]
[348370788,1736475046533,-556.78,0.00010382,2]
[348370789,1736475046543,-500.0,0.00010382,2]
[348370790,1736475046552,-380.76479471,0.00010382,2]
[348370791,1736475046565,-541.01520529,0.00010382,2]
[348370792,1736475046575,-629.46,0.00010382,2]
[348370793,1736475046585,-827.73,0.00010382,2]
[348370794,1736475046595,-156.39868288,0.00010382,2]
[348370795,1736475046606,-1040.12,0.00010382,2]
[348370796,1736475046616,-500.0,0.00010382,2]
[348370797,1736475046625,-598.52,0.00010382,2]
[348370798,1736475046635,-500.0,0.00010382,2]
[348370799,1736475046645,-500.0,0.00010382,2]
[348370800,1736475046655,-1408.47,0.00010382,2]
[348370801,1736475046665,-500.0,0.00010382,2]
[348370802,1736475046674,-1000.36,0.00010382,2]
[348370803,1736475046684,-2397.79,0.00010382,2]
[348370804,1736475046693,-1158.99,0.00010382,2]
[348370805,1736475046704,-1158.99,0.00010382,2]
[348370806,1736475046713,-1087.22,0.00010382,2]
[348370807,1736475046723,-1623.7,0.00010382,2]
[348370808,1736475046732,-674.88,0.00010382,2]
[348370809,1736475046742,-1574.28,0.00010382,2]
[348370810,1736475046751,-2415.3741864,0.00010391,2]
[348370811,1736475046760,-1319.0,0.00010392,2]
[348370812,1736475046769,-215.81945348,0.00010403,2]
[348370813,1736475046779,-200.0,0.00010406,2]
[348370814,1736475046788,-223.1069059,0.00010417,2]
[348370815,1736475046797,-1265.56,0.00010431,2]
[348370816,1736475046808,-8146.95175508,0.00010447,2]
[348370817,1736475046818,-1000.0,0.00010481,2]
[348370818,1736475046827,-1000.0,0.00010481,2]
[348370819,1736475046837,-1000.0,0.00010481,2]
[348370820,1736475046847,-1000.0,0.00010481,2]
[348370821,1736475046856,-1000.0,0.00010481,2]
[348370822,1736475046866,-1000.0,0.00010481,2]
[348370823,1736475046876,-1000.0,0.00010481,2]
[348370824,1736475046886,-1000.0,0.00010481,2]
[348370825,1736475046896,-1000.0,0.00010481,2]
[348370826,1736475046905,-1000.0,0.00010481,2]
[348370827,1736475046915,-150.569,0.00010484,2]
[348370828,1736475046925,-150.0,0.00010484,2]
[348370829,1736475046934,-169.806,0.00010484,2]
[348370830,1736475046943,-150.151,0.00010484,2]
[348370831,1736475046954,-2015.0,0.00010484,2]
[348370832,1736475046963,-1267.0,0.00010484,2]
[348370833,1736475046973,-150.24,0.00010484,2]
[348370834,1736475046982,-567.396,0.00010484,2]
[348370835,1736475046992,-635.0,0.00010484,2]
[348370836,1736475047001,-1863.762,0.00010484,2]
[348370837,1736475047011,-1260.53,0.00010484,2]
[348370838,1736475047021,-820.0,0.00010484,2]
[348370839,1736475047031,-2944.0,0.00010484,2]
[348370840,1736475047041,-919.769,0.00010484,2]
[348370841,1736475047051,-3977.0,0.00010484,2]
[348370842,1736475047061,-538.111,0.00010484,2]
[348370843,1736475047071,-150.621,0.00010484,2]
[348370844,1736475047082,-3896.0,0.00010484,2]
[348370845,1736475047093,-9624.0,0.00010484,2]
[348370846,1736475047102,-1176.802,0.00010484,2]
[348370847,1736475047112,-278.0113346,0.000105,2]
[348370848,1736475047122,-1000.0,0.000105,2]
[348370849,1736475047131,-2415.3741864,0.000105,2]
[348370850,1736475047141,-1000.0,0.0001052,2]
[348370851,1736475047151,-1000.0,0.0001052,2]
[348370852,1736475047161,-1000.0,0.0001052,2]
[348370853,1736475047171,-1000.0,0.0001052,2]
[348370854,1736475047180,-1000.0,0.0001052,2]
[348370855,1736475047190,-1000.0,0.0001052,2]
[348370856,1736475047201,-1000.0,0.0001052,2]
[348370857,1736475047211,-1000.0,0.0001052,2]
[348370858,1736475047220,-1000.0,0.0001052,2]
[348370859,1736475047230,-1000.0,0.0001052,2]
[348370860,1736475047239,-223.1069059,0.00010521,2]
[348370861,1736475047249,-500.0,0.00010544,2]
[348370862,1736475047259,-1822.99,0.00010544,2]
[348370863,1736475047268,-3596.11,0.00010544,2]
[348370864,1736475047278,-1685.56,0.00010544,2]
[348370865,1736475047288,-500.0,0.00010544,2]
[348370866,1736475047298,-1058.84,0.00010544,2]
[348370867,1736475047309,-555.05,0.00010544,2]
[348370868,1736475047319,-500.0,0.00010544,2]
[348370869,1736475047328,-1009.65,0.00010544,2]